bitfinex/quotes_SOLUSD_20241205
["timestamp","ask_amount","ask_price","bid_price","bid_amount"]
[1733357028578,15.21150798,229.38,229.18,23.776884]
[1733357028767,6.3066,229.38,229.18,23.776884]
[1733357029382,1.5399,229.4,229.18,23.776884]
[1733357029383,1.5399,229.4,229.2,8.1239]
[1733357029546,6.52,229.43,229.21,24.64705079]
[1733357029954,138.7494,229.46,229.21,24.64705079]
[1733357030170,1.5494,229.46,229.21,24.64705079]
[1733357030581,6.1635,229.49,229.24,20.0]
[1733357030783,6.1635,229.49,229.25,24.64674938]
[1733357031781,6.1635,229.49,229.27,23.776884]
[1733357031993,20.0,229.46,229.27,24.64674971]
[1733357032978,6.6464,229.51,229.27,24.64674971]
[1733357032979,8.54999318,229.51,229.27,24.64674971]
[1733357033289,11.0132,229.54,229.27,24.64674971]
[1733357033482,6.0132,229.54,229.27,24.64674971]
[1733357033659,6.0132,229.54,229.31,43.776884]
[1733357033855,6.0132,229.54,229.33,23.776884]
[1733357033856,14.71138841,229.54,229.33,23.776884]
[1733357034061,6.0132,229.54,229.33,23.776884]
[1733357034972,5.0,229.59,229.33,23.776884]
[1733357034973,6.2385,229.6,229.36,23.776884]
[1733357035175,6.2385,229.6,229.38,23.776884]
[1733357036366,20.0,229.57,229.38,23.776884]
[1733357037183,23.776884,229.52,229.36,23.776884]
[1733357037692,20.0,229.49,229.36,23.776884]
[1733357037892,20.0,229.49,229.37,0.86960515]
[1733357038193,20.0,229.53,229.36,23.776884]
[1733357038893,20.0,229.53,229.38,23.776884]
[1733357039266,20.0,229.53,229.39,6.1344]
[1733357040369,20.0,229.49,229.39,6.1344]
[1733357040988,23.776884,229.54,229.39,6.1344]
[1733357041182,20.0,229.51,229.39,6.1344]
[1733357041382,54.42009164,229.8,229.4,2.50526461]
[1733357041383,23.776884,229.61,229.4,2.50526461]
[1733357041683,137.2,229.68,229.44,6.1145]
[1733357041879,137.2,229.68,229.45,24.64609459]
[1733357042075,1.5622,229.69,229.45,24.64609459]
[1733357042276,11.0313,229.7,229.47,23.776884]
[1733357042480,19.74133061,229.7,229.47,23.776884]
[1733357042695,156.94133061,229.7,229.47,23.776884]
[1733357042869,20.0,229.67,229.46,1.5353]
[1733357043189,20.0,229.65,229.47,23.776884]
[1733357043398,20.0,229.61,229.47,24.64617971]
[1733357043692,137.2,229.73,229.49,23.776884]
[1733357043895,137.2,229.73,229.49,24.64596053]
[1733357044269,8.64295667,229.73,229.49,23.776884]
[1733357044466,5.0,229.72,229.49,23.776884]
[1733357044883,20.0,229.7,229.49,23.776884]
[1733357045286,20.0,229.62,229.48,6.2823]
[1733357045868,20.0,229.58,229.48,6.2823]
[1733357046941,23.776884,229.57,229.48,6.2823]
[1733357047112,20.0,229.54,229.48,6.2823]
[1733357047486,23.776884,229.53,229.48,6.2823]
[1733357047792,20.0,229.5,229.42,6.1343]
[1733357048274,5.0,229.6,229.42,6.1343]
[1733357048275,20.0,229.46,229.42,6.1343]
[1733357048697,20.0,229.46,229.39,1.5519]
[1733357048898,20.0,229.42,229.37,6.1754]
[1733357049571,20.0,229.52,229.37,6.1754]
[1733357049801,5.0,229.54,229.37,6.1754]
[1733357049802,20.0,229.44,229.37,6.1754]
[1733357050105,20.0,229.4,229.33,1.6383]
[1733357051186,20.0,229.44,229.33,1.6383]
[1733357051575,70.0,229.56,229.33,1.6383]
[1733357051576,20.0,229.4,229.33,1.6383]
[1733357052177,23.776884,229.39,229.33,1.6383]
[1733357052378,23.776884,229.39,229.32,6.0539]
[1733357052579,20.0,229.36,229.32,6.0539]
[1733357054903,20.0,229.36,229.27,1.6155]
[1733357056307,20.0,229.43,229.27,1.6155]
[1733357056606,20.0,229.39,229.27,1.6155]
[1733357056784,23.776884,229.42,229.27,1.6155]
[1733357056989,5.0,229.53,229.27,1.6155]
[1733357056990,137.2,229.49,229.28,24.64687925]
[1733357057204,8.84084017,229.5,229.28,23.776884]
[1733357057505,10.0,229.51,229.27,1.6155]
[1733357057802,5.0,229.51,229.27,1.6155]
[1733357057977,5.0,229.5,229.27,1.6155]
[1733357058182,20.0,229.42,229.27,1.6155]
[1733357058400,20.0,229.38,229.27,1.6155]
[1733357058608,23.776884,229.37,229.27,1.6155]
[1733357058787,20.0,229.34,229.27,1.6155]
[1733357059219,20.0,229.38,229.27,1.6155]
[1733357059388,20.0,229.34,229.27,1.6155]
[1733357059603,20.0,229.3,229.26,6.137]
[1733357059806,20.0,229.3,229.2,1.6503]
[1733357060224,20.0,229.31,229.2,1.6503]
[1733357060909,23.776884,229.35,229.2,1.6503]
[1733357061201,20.0,229.32,229.2,1.6503]
[1733357062432,143.6638,229.46,229.22,23.776884]
[1733357062727,143.6638,229.46,229.21,7.13316849]
[1733357062728,145.76806944,229.48,229.25,7.9227]
[1733357063023,6.5402,229.51,229.26,24.64675532]
[1733357063223,8.1147,229.56,229.28,23.776884]
[1733357063403,11.80108986,229.61,229.33,1.531]
[1733357063603,137.2,229.6,229.35,23.776884]
[1733357063835,137.2,229.59,229.36,0.86956132]
[1733357064230,137.2,229.59,229.37,6.6299]
[1733357064403,137.2,229.6,229.37,6.6299]
[1733357064727,23.776884,229.6,229.37,6.6299]
[1733357064928,20.0,229.53,229.37,6.6299]
[1733357065101,23.776884,229.52,229.37,6.6299]
[1733357065305,20.0,229.53,229.37,6.6299]
[1733357065306,20.0,229.49,229.37,6.6299]
[1733357066105,20.0,229.56,229.37,6.6299]
[1733357066301,20.0,229.52,229.37,6.6299]
[1733357066508,20.0,229.48,229.37,6.6299]
[1733357066815,20.0,229.44,229.37,6.6299]
[1733357067219,20.0,229.4,229.37,6.6299]
[1733357068113,20.0,229.4,229.33,1.531]
[1733357068732,20.0,229.36,229.31,6.584]
[1733357069101,23.776884,229.35,229.27,1.5784]
[1733357069330,20.0,229.32,229.27,1.5784]
[1733357069925,20.0,229.37,229.27,1.5784]
[1733357070127,23.776884,229.36,229.27,1.5784]
[1733357070321,20.0,229.29,229.27,1.5784]
[1733357070626,20.0,229.29,229.25,6.4589]
[1733357071016,20.0,229.42,229.25,6.4589]
[1733357071324,20.0,229.46,229.25,6.4589]
[1733357071532,137.2,229.52,229.26,0.86994743]
[1733357071728,13.1563,229.55,229.26,0.86994743]
[1733357071729,137.2,229.53,229.26,0.86994743]
[1733357072031,137.2,229.52,229.27,23.776884]
[1733357072236,137.2,229.53,229.29,23.776884]
[1733357072533,137.2,229.52,229.29,23.776884]
[1733357072736,23.776884,229.52,229.29,23.776884]
[1733357072912,23.776884,229.53,229.29,23.776884]
[1733357073113,23.776884,229.51,229.29,23.776884]
[1733357073430,23.776884,229.49,229.28,1.6435]
[1733357073608,20.0,229.46,229.28,1.6435]
[1733357073814,23.776884,229.41,229.28,1.6435]
[1733357074033,23.776884,229.37,229.28,1.6435]
[1733357074334,20.0,229.34,229.28,1.6435]
[1733357074739,20.0,229.38,229.28,1.6435]
[1733357074956,23.776884,229.37,229.28,1.6435]
[1733357075263,20.0,229.34,229.28,1.6435]
[1733357076169,20.0,229.3,229.25,6.4589]
[1733357076357,23.776884,229.33,229.25,6.4589]
[1733357076647,20.0,229.3,229.25,6.4589]
[1733357077422,20.0,229.34,229.25,6.4589]
[1733357077737,20.0,229.3,229.25,6.4589]
[1733357078038,20.0,229.26,229.22,1.6266]
[1733357078620,20.0,229.26,229.2,6.17]
[1733357078621,20.0,229.22,229.2,6.17]
[1733357078924,20.0,229.22,229.16,1.6498]
[1733357079833,20.0,229.18,229.14,6.5885693]
[1733357080340,20.0,229.18,229.14,0.5133693]
[1733357080922,20.0,229.15,229.14,0.5133693]
[1733357086320,43.776884,229.15,229.14,0.5133693]
[1733357087235,20.0,229.15,229.14,0.5133693]
[1733357087541,137.2,229.26,229.14,0.5133693]
[1733357087746,137.2,229.28,229.14,0.5133693]
[1733357088033,145.87828935,229.28,229.14,0.5133693]
[1733357088536,11.5329,229.3,229.14,0.5133693]
[1733357088537,6.5329,229.3,229.14,0.5133693]
[1733357089340,8.85894159,229.31,229.14,0.5133693]
[1733357089524,138.8438,229.35,229.15,1.6156]
[1733357089836,1.6438,229.35,229.15,1.6156]
[1733357090015,138.8438,229.35,229.15,1.6156]
[1733357090411,143.8438,229.35,229.15,1.6156]
[1733357090617,20.0,229.32,229.15,1.6156]
[1733357090846,20.0,229.28,229.15,1.6156]
[1733357091016,23.776884,229.23,229.15,1.6156]
[1733357091229,20.0,229.2,229.15,1.6156]
[1733357091418,20.0,229.16,229.14,0.5133693]
[1733357093635,20.0,229.29,229.14,0.5133693]
[1733357093947,20.0,229.25,229.14,0.5133693]
[1733357094111,20.0,229.24,229.14,0.5133693]
[1733357094517,5.0,229.3,229.14,0.5133693]
[1733357094518,20.0,229.23,229.14,0.5133693]
[1733357094822,23.776884,229.22,229.14,0.5133693]
[1733357095009,20.0,229.23,229.14,0.5133693]
[1733357095209,20.0,229.26,229.14,0.5133693]
[1733357096120,23.776884,229.25,229.14,0.5133693]
[1733357096328,23.776884,229.21,229.14,0.5133693]
[1733357096646,20.0,229.18,229.14,0.5133693]
[1733357096814,20.0,229.15,229.14,0.5133693]
[1733357097744,23.776884,229.21,229.14,0.5133693]
[1733357098918,20.0,229.18,229.14,0.5133693]
[1733357099148,20.0,229.15,229.14,0.5133693]
[1733357099318,43.776884,229.15,229.14,0.5133693]
[1733357099517,20.0,229.15,229.14,0.5133693]
[1733357101946,43.776884,229.15,229.14,0.5133693]
[1733357102322,20.0,229.15,229.14,0.5133693]
[1733357102528,137.2,229.31,229.14,0.5133693]
[1733357102723,137.2,229.33,229.14,0.5133693]
[1733357102944,137.2,229.32,229.14,0.5133693]
[1733357103257,137.2,229.31,229.14,0.5133693]
[1733357104124,20.0,229.28,229.14,0.5133693]
[1733357104452,23.776884,229.27,229.14,0.5133693]
[1733357104649,23.776884,229.19,229.14,0.5133693]
[1733357104947,20.0,229.16,229.14,0.5133693]
[1733357106328,23.776884,229.15,229.14,0.5133693]
[1733357112150,138.8558,229.28,229.14,0.5133693]
[1733357112352,137.2,229.27,229.14,0.5133693]
[1733357112650,10.54800741,229.28,229.14,0.5133693]
[1733357112856,8.89220741,229.28,229.15,7.8094]
[1733357113030,137.2,229.29,229.15,7.8094]
[1733357113227,1.6558,229.34,229.15,7.8094]
[1733357113456,138.8613,229.39,229.15,7.8094]
[1733357113744,137.2,229.38,229.15,7.8094]
[1733357114450,10.27747934,229.39,229.15,7.8094]
[1733357115337,137.2,229.4,229.16,0.87042537]
[1733357115754,137.2,229.43,229.17,6.1012]
[1733357116049,137.2,229.43,229.19,1.5447]
[1733357116550,137.2,229.45,229.2,7.5106884]
[1733357116752,137.2,229.44,229.2,7.5106884]
[1733357117724,20.0,229.41,229.2,7.5106884]
[1733357117932,137.2,229.44,229.2,7.5106884]
[1733357118255,153.82521849,229.46,229.2,7.5106884]
[1733357118450,23.776884,229.45,229.2,7.5106884]
[1733357118679,160.976884,229.45,229.2,7.5106884]
[1733357118829,23.776884,229.45,229.22,12.9709]
[1733357119054,137.2,229.5,229.24,1.6509]
[1733357119342,137.2,229.53,229.27,6.32]
[1733357119542,137.2,229.58,229.29,7.9709]
[1733357119745,11.2908,229.59,229.29,7.9709]
[1733357119746,137.2,229.56,229.29,8.8406877]
[1733357119950,20.15345764,229.59,229.29,8.8406877]
[1733357119951,137.2,229.53,229.29,8.8406877]
[1733357120451,20.0,229.5,229.43,0.16840226]
[1733357120656,20.0,229.55,229.43,0.16840226]
[1733357120853,137.2,229.57,229.43,0.16840226]
[1733357121032,137.2,229.56,229.43,6.48840226]
[1733357121251,20.15345764,229.59,229.43,6.48840226]
[1733357121463,137.2,229.57,229.43,6.48840226]
[1733357121667,137.2,229.56,229.43,6.48840226]
[1733357122057,137.2,229.57,229.43,6.48840226]
[1733357122251,20.0,229.49,229.43,6.48840226]
[1733357122445,23.776884,229.48,229.43,6.48840226]
[1733357122644,23.776884,229.44,229.43,6.48840226]
[1733357124967,20.0,229.49,229.43,6.48840226]
[1733357125159,146.06265764,229.59,229.43,6.48840226]
[1733357125345,8.86265764,229.59,229.43,6.48840226]
[1733357125542,137.2,229.62,229.43,6.48840226]
[1733357126438,20.0,229.59,229.43,6.48840226]
[1733357126639,20.0,229.55,229.43,6.48840226]
[1733357126874,23.776884,229.54,229.43,6.48840226]
[1733357127179,146.00532579,229.63,229.43,6.48840226]
[1733357127356,143.7101,229.7,229.43,7.35773915]
[1733357127973,152.32470388,229.7,229.43,7.35773915]
[1733357128467,20.0,229.67,229.44,23.776884]
[1733357128769,152.32470388,229.7,229.46,23.776884]
[1733357128770,137.2,229.69,229.46,23.776884]
[1733357129270,137.2,229.69,229.47,7.5844]
[1733357129747,20.0,229.66,229.47,7.5844]
[1733357130249,20.0,229.67,229.47,7.5844]
[1733357130452,23.776884,229.65,229.47,7.5844]
[1733357130656,20.0,229.62,229.47,7.5844]
[1733357130970,23.776884,229.65,229.47,7.5844]
[1733357131169,23.776884,229.65,229.48,23.776884]
[1733357132166,20.0,229.62,229.48,23.776884]
[1733357132769,20.0,229.58,229.47,7.5844]
[1733357133281,20.0,229.54,229.47,7.5844]
[1733357133477,23.776884,229.49,229.43,0.16840226]
[1733357133647,20.0,229.5,229.43,0.16840226]
[1733357133971,23.776884,229.49,229.43,0.16840226]
[1733357134159,20.0,229.46,229.43,0.16840226]
[1733357134493,23.776884,229.45,229.43,0.16840226]
[1733357134769,1.662,229.6,229.43,0.16840226]
[1733357134770,20.0,229.52,229.43,0.16840226]
[1733357134975,6.662,229.6,229.43,0.16840226]
[1733357134976,20.0,229.48,229.43,0.16840226]
[1733357135568,6.5825,229.66,229.43,0.16840226]
[1733357135569,43.776884,229.54,229.43,0.16840226]
[1733357135747,20.0,229.5,229.43,0.16840226]
[1733357135951,20.0,229.46,229.43,0.16840226]
[1733357138747,20.0,229.5,229.43,0.16840226]
[1733357138969,20.0,229.46,229.43,0.16840226]
[1733357140651,23.776884,229.45,229.43,0.16840226]
[1733357142673,20.0,229.42,229.32,6.548]
[1733357142980,20.0,229.41,229.32,6.548]
[1733357143274,20.0,229.42,229.32,6.548]
[1733357144651,20.0,229.38,229.32,6.548]
[1733357144981,20.0,229.34,229.32,6.548]
[1733357145347,8.57764316,229.47,229.32,6.548]
[1733357145673,23.776884,229.46,229.32,6.548]
[1733357145884,8.92291117,229.52,229.32,6.548]
[1733357146055,137.7,229.54,229.32,6.548]
[1733357146249,137.7,229.55,229.33,1.6288]
[1733357147507,20.0,229.52,229.33,1.6288]
[1733357147668,43.776884,229.51,229.33,1.6288]
[1733357151282,20.0,229.5,229.33,1.6288]
[1733357151485,20.0,229.46,229.33,1.6288]
[1733357151785,20.0,229.42,229.33,1.6288]
[1733357158088,20.0,229.38,229.33,1.6288]
[1733357158288,8.90536714,229.49,229.33,1.6288]
[1733357158289,20.0,229.34,229.33,1.6288]
[1733357158762,43.776884,229.34,229.33,1.6288]
[1733357158957,23.776884,229.33,229.27,6.085]
[1733357159165,20.0,229.3,229.27,6.085]
[1733357159790,20.0,229.26,229.17,7.9325]
[1733357161394,20.0,229.22,229.14,0.5133693]
[1733357161684,20.0,229.18,229.14,0.5133693]
[1733357162070,23.776884,229.29,229.14,0.5133693]
[1733357162274,20.0,229.22,229.14,0.5133693]
[1733357162793,23.776884,229.25,229.14,0.5133693]
[1733357162963,20.0,229.22,229.14,0.5133693]
[1733357163164,20.0,229.18,229.14,0.5133693]
[1733357163896,20.0,229.15,229.14,0.5133693]
[1733357164579,43.776884,229.15,229.14,0.5133693]
[1733357165468,20.0,229.15,229.14,0.5133693]
[1733357166186,137.7,229.33,229.14,0.5133693]
[1733357166393,145.8378,229.37,229.14,0.5133693]
[1733357166778,8.1378,229.37,229.14,1.38382843]
[1733357167375,137.7,229.36,229.14,0.5133693]
[1733357167577,20.0,229.32,229.14,0.5133693]
[1733357167773,20.0,229.27,229.14,0.5133693]
[1733357168175,23.776884,229.22,229.14,0.5133693]
[1733357168410,20.0,229.19,229.14,0.5133693]
[1733357168804,20.0,229.15,229.14,0.5133693]
[1733357170709,43.776884,229.15,229.14,0.5133693]
[1733357176784,20.0,229.11,228.99,6.4584]
[1733357176984,20.0,229.1,228.99,6.4584]
[1733357177707,20.0,229.09,228.99,6.4584]
[1733357178267,20.0,229.09,228.97,1.634]
[1733357178380,20.0,229.08,228.93,6.1824]
[1733357178710,20.0,229.07,228.93,6.1824]
[1733357178910,137.7,229.1,228.93,6.1824]
[1733357178911,20.0,229.03,228.93,6.1824]
[1733357179116,20.0,228.99,228.93,6.1824]
[1733357179488,23.776884,228.98,228.93,6.1824]
[1733357179784,20.0,228.95,228.91,0.5133693]
[1733357182910,8.86717843,229.08,228.91,0.5133693]
[1733357183122,145.8047,229.11,228.91,0.5133693]
[1733357183492,8.1047,229.11,228.91,0.5133693]
[1733357183716,137.7,229.15,228.92,7.5748]
[1733357183925,8.89687544,229.16,228.92,7.5748]
[1733357184222,5.0,229.13,228.92,7.5748]
[1733357184394,137.7,229.13,228.92,7.5748]
[1733357184593,5.0,229.12,228.92,7.5748]
[1733357184816,142.7,229.12,228.92,7.5748]
[1733357185012,43.776884,229.08,228.92,7.5748]
[1733357187025,20.0,229.07,228.92,7.5748]
[1733357187329,20.0,229.03,228.92,7.5748]
[1733357187627,20.0,228.99,228.92,7.5748]
[1733357188309,23.776884,228.98,228.92,7.5748]
[1733357188511,20.0,228.99,228.92,7.5748]
[1733357189230,20.0,228.97,228.92,7.5748]
[1733357192806,23.776884,228.96,228.91,0.5133693]
[1733357193021,20.0,228.93,228.91,0.5133693]
[1733357194312,20.0,228.93,228.91,0.58447443]
[1733357196799,20.0,229.01,228.91,0.58447443]
[1733357197015,20.0,228.97,228.91,0.58447443]
[1733357197439,6.0716,229.1,228.91,0.58447443]
[1733357197651,137.7,229.13,228.91,0.58447443]
[1733357197820,137.7,229.13,228.92,8.1853]
[1733357198038,6.4067,229.15,228.94,23.776884]
[1733357198222,8.68724947,229.17,228.95,0.87122507]
[1733357198422,7.9603,229.2,228.96,6.5909]
[1733357198817,7.9603,229.2,228.97,0.87104685]
[1733357199018,16.67811993,229.2,228.96,6.5909]
[1733357199237,142.7,229.19,228.96,6.5909]
[1733357199424,23.776884,229.18,228.96,6.5909]
[1733357199740,142.7,229.19,228.96,6.5909]
[1733357199741,137.7,229.19,228.96,6.5909]
[1733357199954,5.0,229.18,228.96,6.5909]
[1733357200240,5.0,229.17,228.96,6.5909]
[1733357200416,5.0,229.16,228.96,6.5909]
[1733357200625,10.0,229.13,228.96,6.5909]
[1733357200842,5.0,229.13,228.96,6.5909]
[1733357201033,20.0,229.1,228.96,6.5909]
[1733357201234,23.776884,229.05,228.96,6.5909]
[1733357201424,20.0,229.02,228.96,6.5909]
[1733357204243,20.0,228.98,228.96,6.5909]
[1733357204746,20.0,229.02,228.96,6.5909]
[1733357205157,23.776884,229.05,228.96,6.5909]
[1733357206019,8.9232846,229.1,228.96,6.5909]
[1733357206223,20.0,229.06,228.96,6.5909]
[1733357207122,20.0,229.02,228.96,6.5909]
[1733357208539,20.0,229.07,228.96,6.5909]
[1733357208935,8.6419218,229.1,228.96,6.5909]
[1733357209132,137.7,229.16,228.96,6.5909]
[1733357209353,137.7,229.15,228.96,6.5909]
[1733357209647,7.9603,229.2,228.96,6.5909]
[1733357209648,145.6603,229.2,228.97,1.5263]
[1733357209961,16.79587591,229.2,228.97,1.5263]
[1733357210119,4.27368517,229.19,228.97,1.5263]
[1733357210426,16.79587591,229.2,228.97,1.5263]
[1733357210427,154.49587591,229.2,228.97,1.5263]
[1733357211027,20.0,229.17,228.97,1.5263]
[1733357211224,154.49587591,229.2,228.97,1.5263]
[1733357211225,43.776884,229.16,228.97,1.5263]
[1733357211437,20.0,229.12,228.97,1.5263]
[1733357211639,137.7,229.15,228.97,1.5263]
[1733357211640,20.0,229.11,228.97,1.5263]
[1733357211825,20.0,229.03,228.97,1.5263]
[1733357212152,20.0,228.99,228.97,1.5263]
[1733357213749,20.0,229.11,228.97,1.5263]
[1733357213928,23.776884,229.06,228.97,1.5263]
[1733357214248,20.0,229.03,228.97,1.5263]
[1733357214826,20.0,229.16,228.97,1.5263]
[1733357216254,23.776884,229.11,228.97,1.5263]
[1733357216453,20.0,229.08,228.97,1.5263]
[1733357216625,23.776884,229.07,228.97,1.5263]
[1733357216831,20.0,229.04,228.97,1.5263]
[1733357220044,137.7,229.19,228.97,1.5263]
[1733357220045,20.0,229.16,228.97,1.5263]
[1733357220248,8.61458859,229.16,228.97,1.5263]
[1733357220463,1.5536,229.2,228.97,1.5263]
[1733357221281,23.776884,229.19,228.97,1.5263]
[1733357221469,161.476884,229.19,228.97,1.5263]
[1733357221665,20.0,229.14,228.97,1.5263]
[1733357222043,23.776884,229.09,228.97,1.5263]
[1733357222240,20.0,229.06,228.97,1.5263]
[1733357222969,20.0,229.02,228.97,1.5263]
[1733357223769,43.776884,228.98,228.97,1.5263]
[1733357225368,20.0,228.98,228.97,1.5263]
[1733357226461,43.776884,228.98,228.97,1.5263]
[1733357227444,23.776884,229.12,228.97,1.5263]
[1733357227640,137.7,229.16,228.97,1.5263]
[1733357228377,137.7,229.17,228.97,1.5263]
[1733357228866,20.0,229.14,228.97,1.5263]
[1733357229072,20.0,229.06,228.97,1.5263]
[1733357229274,20.0,229.02,228.97,1.5263]
[1733357229462,23.776884,229.05,228.97,1.5263]
[1733357229667,146.49275952,229.18,228.97,1.5263]
[1733357229884,137.7,229.17,228.97,1.5263]
[1733357231251,20.0,229.13,228.97,1.5263]
[1733357231577,20.0,229.09,228.97,1.5263]
[1733357231748,20.0,229.05,228.97,1.5263]
[1733357232453,23.776884,229.08,228.97,1.5263]
[1733357232651,20.0,229.05,228.97,1.5263]
[1733357233048,20.0,229.16,228.97,1.5263]
[1733357234062,20.0,229.12,228.97,1.5263]
[1733357234382,23.776884,229.15,228.97,1.5263]
[1733357234383,23.776884,229.09,228.97,1.5263]
[1733357234770,23.776884,229.05,228.97,1.5263]
[1733357235380,20.0,229.02,228.97,1.5263]
[1733357236279,23.776884,229.01,228.97,1.5263]
[1733357236478,20.0,228.98,228.97,1.5263]
[1733357236688,43.776884,228.98,228.97,1.5263]
[1733357238778,20.0,228.98,228.97,1.5263]
[1733357238957,20.0,229.08,228.97,1.5263]
[1733357239158,20.0,229.04,228.97,1.5263]
[1733357239380,165.86605346,229.19,228.97,1.5263]
[1733357239690,29.16029617,229.19,228.97,7.20747448]
[1733357239991,0.99424271,229.18,228.97,1.5263]
[1733357240558,0.99424271,229.18,228.97,2.39737835]
[1733357240760,0.99424271,229.18,228.97,1.5263]
[1733357241073,23.776884,229.17,228.97,1.5263]
[1733357241659,23.776884,229.15,228.97,1.5263]
[1733357241973,23.776884,229.11,228.97,1.5263]
[1733357242183,20.0,229.08,228.97,1.5263]
[1733357242385,20.0,229.04,228.97,1.5263]
[1733357243089,20.0,229.08,228.97,1.5263]
[1733357243258,20.0,229.04,228.97,1.5263]
[1733357243685,20.0,229.08,228.97,1.5263]
[1733357243866,23.776884,229.07,228.97,1.5263]
[1733357244073,20.0,229.16,228.98,0.87104393]
[1733357245162,30.6783045,229.19,228.99,6.5471]
[1733357245378,8.94615104,229.19,228.99,6.5471]
[1733357245707,137.7,229.24,229.0,1.5912]
[1733357245866,137.7,229.25,229.01,0.87094326]
[1733357246886,137.7,229.27,229.01,0.87094326]
[1733357247072,43.776884,229.23,229.01,0.87094326]
[1733357247787,43.776884,229.23,229.02,6.5963]
[1733357248111,20.0,229.14,229.03,2.52036302]
[1733357248308,23.776884,229.13,229.03,2.52036302]
[1733357249497,23.776884,229.13,229.04,6.041]
[1733357249703,23.776884,229.13,229.05,0.87070916]
[1733357249898,23.776884,229.13,229.04,6.041]
[1733357250604,23.776884,229.13,229.05,0.870758]
[1733357252588,137.7,229.31,229.07,6.2563]
[1733357252897,0.99424271,229.31,229.08,0.87059925]
[1733357253715,0.99424271,229.31,229.12,5.0]
[1733357254014,0.99424271,229.31,229.13,0.87043174]
[1733357254810,0.99424271,229.31,229.28,5.13e-06]
[1733357255009,23.776884,229.3,229.28,5.13e-06]
[1733357255978,20.99424271,229.31,229.28,5.13e-06]
[1733357256507,20.0,229.31,229.28,5.13e-06]
[1733357257222,23.776884,229.3,229.28,5.13e-06]
[1733357258991,6.1849,229.44,229.28,5.13e-06]
[1733357258992,137.7,229.41,229.28,5.13e-06]
[1733357259196,6.1849,229.44,229.28,5.13e-06]
[1733357259197,143.8849,229.44,229.28,5.13e-06]
[1733357259924,15.10434122,229.44,229.28,5.13e-06]
[1733357260398,20.0,229.41,229.28,5.13e-06]
[1733357261221,20.0,229.37,229.28,5.13e-06]
[1733357261425,20.0,229.33,229.28,5.13e-06]
[1733357261798,20.0,229.29,229.28,5.13e-06]
[1733357262113,43.776884,229.29,229.28,5.13e-06]
[1733357263623,23.776884,229.29,229.28,5.13e-06]
[1733357263927,20.0,229.41,229.28,5.13e-06]
[1733357264094,1.5854,229.45,229.28,5.13e-06]
[1733357264298,137.7,229.49,229.29,7.7533]
[1733357264522,6.2836,229.5,229.29,7.7533]
[1733357264746,1.5584,229.51,229.3,0.86982136]
[1733357265025,143.9836,229.55,229.3,0.86982136]
[1733357265518,6.2836,229.55,229.3,0.86982136]
[1733357265829,6.2836,229.55,229.31,1.5018]
[1733357266007,6.2836,229.55,229.32,0.8696733]
[1733357266719,20.0,229.52,229.32,0.8696733]
[1733357266902,20.0,229.54,229.33,6.1248]
[1733357267418,21.5584,229.56,229.33,6.1248]
[1733357267625,43.776884,229.55,229.33,6.1248]
[1733357267828,23.776884,229.52,229.33,6.1248]
[1733357268052,23.776884,229.48,229.33,6.1248]
[1733357268360,23.776884,229.4,229.33,6.1248]
[1733357270230,23.776884,229.36,229.33,6.1248]